bitfinex-derivatives/quotes_SOLF0:USTF0_20251024
["timestamp","ask_amount","ask_price","bid_price","bid_amount"]
[1761267753059,4.84262538,192.41,192.39,45.43969106]
[1761267753262,2.82,192.4,192.39,45.43969106]
[1761267756759,7.09344158,192.4,192.39,45.43969106]
[1761267759563,4.84262538,192.43,192.39,45.43969106]
[1761267759864,4.84262538,192.47,192.41,1.51969106]
[1761267760066,4.89559088,192.46,192.39,43.92]
[1761267760261,4.84262538,192.47,192.39,43.92]
[1761267760464,4.89556749,192.46,192.39,43.92]
[1761267760665,4.84262538,192.47,192.39,43.92]
[1761267760862,4.89556795,192.46,192.39,43.92]
[1761267761064,4.84262538,192.47,192.4,4.6764]
[1761267761260,7.71556692,192.46,192.45,1.51969106]
[1761267762169,2.82,192.45,192.44,1.51969106]
[1761267763170,2.82,192.44,192.43,43.9]
[1761267763666,2.82,192.45,192.43,43.9]
[1761267763970,2.82,192.45,192.44,1.51969106]
[1761267764175,7.71679611,192.45,192.44,1.51969106]
[1761267764371,7.71679611,192.45,192.43,43.9]
[1761267764572,2.82,192.45,192.44,1.51969106]
[1761267765770,2.82,192.46,192.44,1.51969106]
[1761267765969,7.716947,192.45,192.44,1.51969106]
[1761267766467,2.82,192.45,192.44,1.51969106]
[1761267766869,2.82,192.45,192.43,1.51969106]
[1761267767063,2.82,192.43,192.32,62.0]
[1761267767268,2.82,192.4,192.35,1.51969106]
[1761267769469,2.82,192.4,192.32,48.5584]
[1761267769673,2.82,192.4,192.34,1.51969106]
[1761267771770,2.82,192.38,192.34,1.51969106]
[1761267771975,7.13045721,192.37,192.34,1.51969106]
[1761267772179,4.31045721,192.36,192.34,1.51969106]
[1761267772475,2.82,192.37,192.34,45.39969106]
[1761267772778,7.13051915,192.36,192.34,1.51969106]
[1761267772966,2.82,192.36,192.34,1.51969106]
[1761267774077,2.82,192.36,192.34,45.39969106]
[1761267774282,2.82,192.39,192.34,1.51969106]
[1761267774578,2.82,192.42,192.38,1.51969106]
[1761267774879,4.31021618,192.41,192.4,1.51969106]
[1761267775579,2.82,192.45,192.4,1.51969106]
[1761267775780,4.31023827,192.44,192.43,1.51969106]
[1761267775980,4.31023827,192.44,192.43,45.39969106]
[1761267778170,4.31023827,192.44,192.43,43.88]
[1761267778370,4.31023827,192.44,192.43,45.39969106]
[1761267782090,7.01023827,192.44,192.43,43.88]
[1761267782382,7.01023827,192.44,192.43,45.39969106]
[1761267782582,11.91486503,192.44,192.43,45.39969106]
[1761267782783,11.91486503,192.44,192.43,43.88]
[1761267783588,7.01023827,192.44,192.43,43.88]
[1761267784482,9.21600133,192.44,192.4,2.37511891]
[1761267784683,4.31023827,192.43,192.41,43.86]
[1761267784885,4.31023827,192.42,192.41,43.86]
[1761267785886,4.90573914,192.45,192.43,2.37511891]
[1761267786080,4.84829803,192.46,192.43,2.37511891]
[1761267786286,4.90573586,192.45,192.43,2.37511891]
[1761267786491,7.54829803,192.46,192.43,2.37511891]
[1761267786783,4.90617008,192.45,192.43,2.37511891]
[1761267786984,7.54829803,192.46,192.43,2.37511891]
[1761267787183,4.90616946,192.45,192.43,2.37511891]
[1761267787384,7.54829803,192.46,192.43,2.37511891]
[1761267787583,4.90671062,192.45,192.43,2.37511891]
[1761267787790,7.54829803,192.46,192.43,2.37511891]
[1761267787980,4.90671006,192.45,192.43,2.37511891]
[1761267788184,7.55087892,192.46,192.43,2.37511891]
[1761267788482,4.90736557,192.45,192.42,2.37511891]
[1761267788690,7.55087892,192.46,192.42,2.37511891]
[1761267788890,7.60736517,192.45,192.42,2.37511891]
[1761267789191,2.7,192.45,192.42,2.37511891]
[1761267789588,4.85087892,192.49,192.42,2.37511891]
[1761267789788,4.85087892,192.5,192.46,2.37511891]
[1761267790092,4.85087892,192.5,192.49,2.37511891]
[1761267790289,4.9065839,192.5,192.49,46.21511891]
[1761267790481,4.85087892,192.52,192.49,46.21511891]
[1761267790686,2.7,192.56,192.49,46.21511891]
[1761267790886,4.90360684,192.55,192.53,2.37511891]
[1761267791080,2.7,192.56,192.54,43.84]
[1761267791281,2.7,192.59,192.54,43.84]
[1761267791481,2.7,192.63,192.57,2.37511891]
[1761267791682,2.7,192.61,192.57,2.37511891]
[1761267791886,2.7,192.59,192.58,43.84]
[1761267792195,4.89758734,192.59,192.58,43.84]
[1761267792387,4.89170428,192.62,192.58,43.84]
[1761267792590,2.7,192.63,192.58,43.84]
[1761267792892,2.7,192.66,192.6,2.37511891]
[1761267793088,7.59037546,192.65,192.6,2.37511891]
[1761267793295,2.7,192.64,192.6,2.37511891]
[1761267794693,2.7,192.64,192.58,43.84]
[1761267795895,7.57360873,192.68,192.58,48.5119]
[1761267796090,4.87360873,192.67,192.58,48.5119]
[1761267796297,2.7,192.68,192.6,5.72203321]
[1761267796794,2.7,192.68,192.6,10.39353321]
[1761267796992,2.7,192.68,192.56,5.72203321]
[1761267797197,75.91335314,192.75,192.57,43.82]
[1761267797198,2.7,192.74,192.57,43.82]
[1761267797389,2.7,192.73,192.61,5.72203321]
[1761267797694,2.7,192.73,192.62,43.82]
[1761267797890,2.7,192.71,192.62,43.82]
[1761267799096,2.7,192.7,192.63,43.8]
[1761267799399,2.7,192.69,192.64,43.8]
[1761267799598,2.7,192.69,192.58,4.672]
[1761267799792,2.7,192.69,192.59,43.8]
[1761267800992,2.7,192.69,192.6,43.8]
[1761267801391,2.7,192.69,192.6,49.52203321]
[1761267804396,9.05003941,192.71,192.6,49.52203321]
[1761267804592,2.7,192.73,192.6,49.52203321]
[1761267804990,6.80095254,192.73,192.64,5.72203321]
[1761267805190,11.74522891,192.73,192.64,5.72203321]
[1761267805397,2.7,192.73,192.64,5.72203321]
[1761267805996,2.7,192.73,192.64,10.39243321]
[1761267806197,11.73895541,192.77,192.64,5.72203321]
[1761267806395,9.03895541,192.76,192.64,5.72203321]
[1761267806599,2.7,192.77,192.64,5.72203321]
[1761267808198,2.7,192.77,192.66,4.67]
[1761267808397,2.79,192.76,192.67,43.76]
[1761267808605,156.22501461,192.89,192.64,5.72203321]
[1761267808606,2.79,192.83,192.68,48.4295]
[1761267808905,2.79,192.81,192.68,48.4295]
[1761267809103,2.73,192.79,192.68,48.4295]
[1761267809302,2.73,192.77,192.68,48.4295]
[1761267809507,2.73,192.77,192.68,43.76]
[1761267810811,2.73,192.77,192.69,43.76]
[1761267811706,26.90281741,192.91,192.69,43.76]
[1761267811707,6.41712733,192.86,192.69,43.76]
[1761267811911,2.73,192.84,192.69,43.76]
[1761267812111,2.73,192.82,192.69,43.76]
[1761267812307,2.73,192.8,192.68,5.72203321]
[1761267812610,2.73,192.78,192.67,20.5]
[1761267812811,2.73,192.76,192.67,20.5]
[1761267813005,2.73,192.74,192.67,20.5]
[1761267813204,2.73,192.73,192.67,20.5]
[1761267816612,2.73,192.71,192.6,10.39343321]
[1761267816818,2.73,192.69,192.61,2.36954444]
[1761267817018,2.73,192.67,192.61,2.36954444]
[1761267817718,9.01661027,192.7,192.61,2.36954444]
[1761267817912,4.92921557,192.69,192.61,2.36954444]
[1761267818119,2.73,192.74,192.64,2.36954444]
[1761267818319,11.74556132,192.73,192.64,2.36954444]
[1761267818514,11.74556132,192.72,192.61,4.6712]
[1761267818715,9.01556132,192.71,192.65,2.36954444]
[1761267819016,2.73,192.72,192.65,2.36954444]
[1761267819413,2.73,192.76,192.68,2.36954444]
[1761267819614,9.02322441,192.75,192.71,2.36954444]
[1761267819816,2.73,192.8,192.71,46.10954444]
[1761267820117,2.73,192.78,192.71,46.10954444]
[1761267820313,9.02175098,192.77,192.71,46.10954444]
[1761267820513,9.02175098,192.76,192.71,46.10954444]
[1761267820717,6.41712733,192.83,192.74,2.36954444]
[1761267820718,2.73,192.82,192.74,2.36954444]
[1761267820923,8.87764769,192.81,192.74,2.36954444]
[1761267821222,8.87764769,192.8,192.74,2.36954444]
[1761267821414,4.09011809,192.79,192.74,2.36954444]
[1761267821613,4.09011809,192.78,192.74,2.36954444]
[1761267821815,4.78701185,192.8,192.74,2.36954444]
[1761267822020,2.73,192.82,192.77,2.36954444]
[1761267822223,4.08936172,192.81,192.78,43.74]
[1761267822419,4.08936172,192.8,192.78,43.74]
[1761267822620,7.51631427,192.84,192.8,2.36954444]
[1761267822823,8.87534214,192.83,192.78,43.74]
[1761267823022,2.73,192.81,192.78,43.74]
[1761267823219,4.08902787,192.8,192.78,43.74]
[1761267823420,2.73,192.81,192.78,43.74]
[1761267823610,4.08907705,192.8,192.78,43.74]
[1761267823817,7.51582064,192.83,192.78,43.74]
[1761267824015,8.87489769,192.82,192.78,43.74]
[1761267824324,4.08907705,192.81,192.78,43.74]
[1761267824523,4.08907705,192.8,192.78,43.74]
[1761267824822,2.73,192.86,192.78,43.74]
[1761267825122,2.73,192.84,192.78,43.74]
[1761267825326,11.60620823,192.83,192.78,43.74]
[1761267825517,8.87620823,192.82,192.78,43.74]
[1761267825716,4.08957297,192.81,192.78,43.74]
[1761267825912,4.08957297,192.8,192.78,43.74]
[1761267826116,2.73,192.82,192.78,43.74]
[1761267826323,4.0897429,192.81,192.78,43.74]
[1761267826625,4.0897429,192.8,192.78,43.74]
[1761267826824,4.0897429,192.8,192.64,40.3891495]
[1761267826825,4.0897429,192.79,192.73,6.1491495]
[1761267827019,4.0897429,192.78,192.74,43.72]
[1761267827224,4.78711107,192.82,192.74,43.72]
[1761267827526,8.86938448,192.81,192.74,43.72]
[1761267827727,4.08227341,192.8,192.74,43.72]
[1761267827927,4.08227341,192.79,192.74,43.72]
[1761267828127,4.79066258,192.81,192.74,43.72]
[1761267828322,4.08440831,192.8,192.74,43.72]
[1761267828521,4.08440831,192.79,192.74,43.72]
[1761267828719,2.73,192.81,192.74,43.72]
[1761267828924,8.87803531,192.8,192.74,43.72]
[1761267829124,4.08445136,192.79,192.74,43.72]
[1761267829429,2.73,192.81,192.74,43.72]
[1761267829430,4.08445136,192.78,192.74,43.72]
[1761267829725,2.73,192.81,192.74,43.72]
[1761267830030,8.88390098,192.8,192.74,43.72]
[1761267830225,8.88763967,192.79,192.74,43.72]
[1761267830529,4.08717039,192.78,192.74,43.72]
[1761267830731,4.08717039,192.77,192.74,43.72]
[1761267830926,2.73,192.81,192.75,43.7]
[1761267831229,11.62084176,192.8,192.75,43.7]
[1761267831424,8.89084176,192.79,192.75,43.7]
[1761267831729,8.89084176,192.78,192.75,43.7]
[1761267831923,4.09029448,192.77,192.75,43.7]
[1761267832118,4.09029448,192.76,192.75,43.7]
[1761267833527,4.09029448,192.76,192.69,6.1491495]
[1761267833726,4.09029448,192.75,192.7,43.7]
[1761267833936,4.09029448,192.74,192.7,43.7]
[1761267834227,2.73,192.8,192.7,43.7]
[1761267834528,8.93047471,192.79,192.73,6.1491495]
[1761267834718,8.93047471,192.78,192.77,6.1491495]
[1761267834925,2.73,192.84,192.77,49.8491495]
[1761267838034,2.73,192.84,192.77,43.7]
[1761267840827,2.73,192.84,192.77,48.3674]
[1761267841533,6.41712733,192.89,192.77,65.4291495]
[1761267841734,12.83425467,192.96,192.81,21.7291495]
[1761267841735,2.8,192.93,192.81,21.7291495]
[1761267841935,2.8,192.93,192.82,43.68]
[1761267842843,2.8,192.93,192.89,2.36336572]
[1761267843048,2.8,192.96,192.9,43.68]
[1761267843640,2.8,193.0,192.9,43.68]
[1761267844042,2.8,193.0,192.92,2.36336572]
[1761267844742,2.8,193.0,192.95,1.51170061]
[1761267845041,2.8,193.0,192.96,43.68]
[1761267846137,2.8,193.0,192.89,4.6645]
[1761267846342,1.51170061,192.99,192.94,43.68]
[1761267846542,2.8,192.98,192.94,43.68]
[1761267846739,2.8,192.98,192.93,43.66]
[1761267846942,2.8,192.96,192.93,43.66]
[1761267848647,2.8,192.96,192.86,20.4956128]
[1761267848843,2.8,192.96,192.89,1.51170061]
[1761267849143,2.8,192.95,192.89,1.51170061]
[1761267849347,1.51170061,192.95,192.89,43.66]
[1761267849645,2.8,192.94,192.89,43.66]
[1761267849846,2.8,192.94,192.89,45.17170061]
[1761267850346,2.8,192.98,192.89,45.17170061]
[1761267850645,2.8,192.98,192.91,1.51170061]
[1761267852636,2.8,192.98,192.89,48.3245]
[1761267854941,6.66576914,193.02,192.89,52.10522103]
[1761267855142,2.8,193.02,192.91,4.6639]
[1761267855550,2.8,193.02,192.92,43.64]
[1761267856351,2.8,193.02,192.93,43.64]
[1761267856552,2.8,193.01,192.93,43.64]
[1761267856749,2.8,193.01,192.88,4.6646]
[1761267856945,3.78072103,192.99,192.85,4.6655]
[1761267857147,2.8,192.98,192.86,43.64]
[1761267857855,2.8,192.97,192.86,43.64]
[1761267860353,2.8,192.97,192.8,98.4608463]
[1761267860551,2.8,192.94,192.8,98.4608463]
[1761267860853,2.8,192.94,192.8,142.1008463]
[1761267861053,3.78072103,192.95,192.8,142.1008463]
[1761267861054,2.8,192.93,192.8,142.1008463]
[1761267861955,2.8,192.93,192.81,4.6665]
[1761267863656,2.8,192.93,192.8,142.1008463]
[1761267863657,2.8,192.9,192.8,98.4608463]
[1761267864058,2.8,192.89,192.8,98.4608463]
[1761267864456,3.83038385,192.93,192.8,98.4608463]
[1761267864760,2.8,192.94,192.83,3.78072103]
[1761267864956,2.8,192.94,192.84,43.62]
[1761267865956,2.8,192.94,192.86,4.6651]
[1761267866756,2.8,192.94,192.87,62.0]
[1761267866954,2.8,192.94,192.86,4.6651]
[1761267867658,2.81,193.0,192.86,4.6651]
[1761267867958,2.81,192.98,192.86,4.6651]
[1761267868157,2.81,192.97,192.86,4.6651]
[1761267869059,6.64144568,192.97,192.86,4.6651]
[1761267869254,2.81,192.97,192.86,4.6651]
[1761267869561,2.81,192.97,192.87,3.78072103]
[1761267870256,3.83197862,192.97,192.87,3.78072103]
[1761267870461,2.84,192.96,192.87,3.78072103]
[1761267872061,2.84,192.96,192.83,3.78072103]
[1761267872062,3.83287435,192.95,192.83,3.78072103]
[1761267872259,2.84,192.93,192.84,43.62]
[1761267872452,2.84,192.92,192.84,43.62]
[1761267872653,2.84,192.92,192.86,1.51309829]
[1761267873267,2.84,192.92,192.84,43.62]
[1761267873268,2.84,192.92,192.88,1.51309829]
[1761267874867,2.84,192.92,192.84,48.2857]
[1761267876860,2.84,192.92,192.85,43.62]
[1761267880163,6.74903975,192.96,192.86,8.44721434]
[1761267880468,3.90903975,192.95,192.86,3.78201434]
[1761267880970,6.74903975,192.95,192.86,3.78201434]
[1761267881170,2.84,192.95,192.86,3.78201434]
[1761267882667,2.84,192.95,192.87,4.665]
[1761267883863,3.99058019,192.94,192.87,4.665]
[1761267884066,2.84,192.95,192.87,4.665]
[1761267884270,3.99275215,192.94,192.87,4.665]
[1761267884459,2.84,192.95,192.87,4.665]
[1761267884460,3.99279484,192.93,192.87,4.665]
[1761267884662,2.84,192.95,192.87,4.665]
[1761267884866,3.99279484,192.94,192.87,4.665]
[1761267885070,3.99279484,192.93,192.87,4.665]
[1761267885267,2.84,192.95,192.87,4.665]
[1761267885473,3.99300691,192.94,192.87,4.665]
[1761267885674,3.99300691,192.93,192.87,4.665]
[1761267885972,2.84,192.95,192.87,4.665]
[1761267886268,3.9930072,192.94,192.88,43.6]
[1761267886569,6.8330072,192.93,192.88,43.6]
[1761267886868,2.84,192.93,192.86,3.78201434]
[1761267887065,2.84,192.91,192.86,43.6]
[1761267887366,2.84,192.89,192.86,43.6]
[1761267891369,2.84,192.89,192.84,4.6655]
[1761267891564,4.07791229,192.88,192.85,43.6]
[1761267891768,2.84,192.88,192.85,43.6]
[1761267892769,2.84,192.86,192.85,43.6]
[1761267893063,2.84,192.86,192.82,3.78201434]
[1761267893267,2.84,192.84,192.83,43.6]
[1761267894276,2.84,192.88,192.83,43.6]
[1761267894478,4.07768377,192.87,192.83,43.6]
[1761267894673,2.84,192.91,192.86,1.51293091]
[1761267894875,6.91735793,192.9,192.86,1.51293091]
[1761267895076,4.07735793,192.89,192.86,1.51293091]
[1761267895268,2.84,192.91,192.86,1.51293091]
[1761267895467,6.91724181,192.9,192.86,1.51293091]
[1761267895670,4.07724181,192.89,192.86,1.51293091]
[1761267895866,4.07724181,192.88,192.86,1.51293091]
[1761267896079,2.84,192.89,192.86,1.51293091]
[1761267896275,4.0775455,192.88,192.86,1.51293091]
[1761267896474,2.84,192.89,192.86,1.51293091]
[1761267896675,6.91758801,192.88,192.86,1.51293091]
[1761267896877,4.07771963,192.87,192.86,1.51293091]
[1761267897276,4.07771963,192.87,192.84,1.51293091]
[1761267897580,2.84,192.88,192.84,1.51293091]
[1761267897876,6.91800314,192.87,192.84,1.51293091]
[1761267898081,2.84,192.87,192.84,1.51293091]
[1761267898475,2.84,192.87,192.83,43.6]
[1761267898672,2.84,192.87,192.86,1.51293091]
[1761267898874,6.91820291,192.87,192.86,1.51293091]
[1761267901776,2.74,192.86,192.67,34.24]
[1761267902078,2.74,192.82,192.78,1.51293091]
[1761267902274,6.81820291,192.81,192.78,1.51293091]
[1761267902475,6.81820291,192.81,192.77,43.58]
[1761267902476,4.07820291,192.8,192.77,43.58]
[1761267902681,4.07820291,192.79,192.77,43.58]
[1761267902874,2.74,192.81,192.77,43.58]
[1761267903080,2.74,192.79,192.77,43.58]
[1761267903474,2.74,192.79,192.78,1.51293091]
[1761267903879,6.99035093,192.79,192.78,1.51293091]
[1761267904079,6.99035093,192.79,192.77,45.09293091]
[1761267904386,2.74,192.78,192.77,45.09293091]
[1761267904784,2.74,192.78,192.77,43.58]
[1761267905287,2.74,192.82,192.77,43.58]
[1761267905483,4.84326054,192.83,192.77,43.58]
[1761267905484,2.74,192.8,192.77,43.58]
[1761267905786,6.98721048,192.79,192.77,43.58]
[1761267905987,2.74,192.79,192.77,43.58]
[1761267907084,4.24585249,192.78,192.77,43.58]
[1761267907281,6.98585249,192.78,192.77,43.58]
[1761267908084,6.98585249,192.78,192.74,2.36685154]
[1761267908291,2.74,192.76,192.74,45.96685154]
[1761267908677,2.74,192.81,192.74,45.96685154]
[1761267908884,6.98201036,192.8,192.74,45.96685154]
[1761267909084,2.74,192.78,192.74,45.96685154]
[1761267909285,2.74,192.76,192.74,45.96685154]
[1761267909493,4.84326054,192.82,192.74,45.96685154]
[1761267909679,4.24018622,192.81,192.79,2.36685154]
[1761267909883,4.24018622,192.8,192.74,43.6]
[1761267910090,4.24018622,192.79,192.77,2.36685154]
[1761267910297,2.74,192.82,192.77,2.36685154]
[1761267910492,2.74,192.8,192.77,2.36685154]
[1761267911995,2.74,192.8,192.74,45.96685154]
[1761267912187,2.74,192.78,192.74,45.96685154]
[1761267913889,2.74,192.78,192.74,2.36685154]
[1761267914095,2.74,192.78,192.74,45.96685154]
[1761267914700,2.74,192.78,192.74,2.36685154]
[1761267914901,2.74,192.78,192.74,45.94685154]
[1761267916602,2.74,192.76,192.74,43.58]
[1761267916999,4.23572311,192.75,192.68,2.36685154]
[1761267917200,2.74,192.73,192.68,2.36685154]
[1761267917504,2.74,192.73,192.68,31.74685154]
[1761267919608,2.74,192.73,192.68,29.38]
[1761267921096,2.74,192.73,192.65,2.36685154]
[1761267921400,2.74,192.71,192.65,43.6]
[1761267921598,2.74,192.69,192.65,43.6]
[1761267924402,7.56739561,192.74,192.65,43.6]
[1761267924605,4.25691068,192.73,192.66,2.36685154]
[1761267924896,2.74,192.74,192.66,2.36685154]
[1761267925101,4.25632929,192.73,192.66,7.03695154]
[1761267925297,2.74,192.74,192.66,7.03695154]
[1761267925505,4.25590115,192.73,192.66,7.03695154]
[1761267925712,6.99590115,192.72,192.66,2.36685154]
[1761267925905,2.74,192.72,192.66,2.36685154]
[1761267926698,2.74,192.72,192.67,43.6]
[1761267927309,6.96625804,192.71,192.67,43.6]
[1761267927507,2.71,192.71,192.67,43.6]
[1761267928207,4.2565897,192.7,192.67,43.6]
[1761267928403,2.71,192.71,192.67,43.6]
[1761267928602,4.25585289,192.7,192.67,43.6]
[1761267928804,2.71,192.71,192.67,43.6]
[1761267929712,6.88638576,192.7,192.67,43.6]
[1761267929906,2.63,192.7,192.67,43.6]
[1761267930111,4.82739561,192.74,192.67,43.6]
[1761267930307,6.88735665,192.73,192.67,43.6]
[1761267930509,2.63,192.71,192.67,43.6]
[1761267930808,4.25735665,192.7,192.67,43.6]
[1761267931005,2.63,192.71,192.67,43.6]
[1761267931306,4.25677714,192.7,192.69,2.36685154]
[1761267931506,4.82739561,192.77,192.69,2.36685154]
[1761267931708,2.63,192.75,192.69,2.36685154]
[1761267931901,2.63,192.73,192.69,2.36685154]
[1761267932103,2.63,192.71,192.67,45.96685154]
[1761267932300,6.45768072,192.77,192.67,45.96685154]
[1761267932301,6.88714537,192.7,192.67,45.96685154]
[1761267932514,2.63,192.69,192.67,45.96685154]
[1761267933807,2.63,192.74,192.67,45.96685154]
[1761267934010,6.88793996,192.73,192.7,2.36685154]
[1761267934313,4.25793996,192.72,192.7,2.36685154]
[1761267934509,4.25793996,192.71,192.7,2.36685154]
[1761267937510,4.82739561,192.76,192.7,2.36685154]
[1761267937718,7.45739561,192.77,192.7,2.36685154]
[1761267938514,2.63,192.77,192.73,2.36685154]
[1761267938819,7.45739561,192.79,192.74,43.58]
[1761267939318,4.82739561,192.81,192.74,43.58]
[1761267939719,4.82739561,192.82,192.76,2.36685154]
[1761267940513,7.45739561,192.84,192.76,7.03445154]
[1761267940821,2.63,192.84,192.76,7.03445154]
[1761267941007,2.63,192.84,192.79,2.36685154]
[1761267941214,4.82739561,192.86,192.8,43.58]
[1761267941521,7.45739561,192.86,192.8,43.58]
[1761267943320,2.63,192.86,192.8,43.58]
[1761267944116,4.82739561,192.86,192.81,43.58]
[1761267944423,2.63,192.85,192.81,43.58]
[1761267946317,2.63,192.85,192.71,77.58]
[1761267946318,2.63,192.85,192.75,2.36685154]
[1761267946524,2.63,192.84,192.76,43.56]
[1761267949727,4.2550178,192.83,192.76,43.56]
[1761267949915,4.2550178,192.82,192.76,43.56]
[1761267950115,4.2550178,192.81,192.76,43.56]
[1761267950317,2.63,192.84,192.76,43.56]
[1761267950520,2.63,192.82,192.76,43.56]
[1761267950726,2.63,192.8,192.76,43.56]
[1761267951325,2.63,192.83,192.76,43.56]
[1761267951524,4.25491921,192.82,192.76,43.56]
[1761267951830,4.25491921,192.81,192.76,43.56]
[1761267952018,2.63,192.83,192.76,43.56]
[1761267952222,4.25491924,192.82,192.76,43.56]
[1761267952526,6.88491924,192.81,192.76,43.56]
[1761267952729,2.63,192.81,192.76,43.56]
[1761267953133,2.63,192.81,192.77,43.56]
[1761267954031,2.63,192.84,192.77,43.56]
[1761267954334,4.25436447,192.83,192.77,43.56]
[1761267954533,4.25436447,192.82,192.77,43.56]
[1761267954723,2.63,192.84,192.77,43.56]
[1761267954925,4.25404202,192.83,192.77,43.56]
[1761267955228,4.25404202,192.82,192.77,43.56]
[1761267955427,2.63,192.84,192.77,43.56]
[1761267955627,4.25401129,192.83,192.77,43.56]
[1761267955826,4.25401129,192.82,192.77,43.56]
[1761267956029,2.63,192.84,192.77,43.56]
[1761267956226,4.25401129,192.83,192.77,43.56]
[1761267956424,4.25401129,192.82,192.77,43.56]
[1761267956625,2.63,192.84,192.77,43.56]
[1761267956824,4.25406857,192.83,192.77,43.56]
[1761267957033,4.25406857,192.82,192.77,43.56]
[1761267957224,2.63,192.84,192.77,43.56]
[1761267957425,4.25388514,192.83,192.77,43.56]
[1761267957625,4.25388514,192.82,192.77,43.56]
[1761267957835,2.63,192.84,192.77,43.56]
[1761267958039,4.25388421,192.83,192.77,43.56]
[1761267958230,4.25388421,192.82,192.77,43.56]
[1761267958435,2.63,192.84,192.77,43.56]
[1761267958736,4.2537022,192.83,192.77,43.56]
[1761267958933,4.2537022,192.82,192.77,43.56]
[1761267959131,2.63,192.84,192.77,43.56]
[1761267959431,4.25370185,192.83,192.77,43.56]
[1761267959632,4.25370185,192.82,192.77,43.56]
[1761267959930,2.63,192.84,192.77,43.56]
[1761267960132,4.25344692,192.83,192.77,43.56]
[1761267960333,4.25344692,192.82,192.78,2.36685154]
[1761267960535,2.72,192.87,192.78,2.36685154]
[1761267960733,4.25260701,192.86,192.78,2.36685154]
[1761267961038,4.25260701,192.85,192.81,2.36685154]
[1761267961337,2.72,192.87,192.82,43.54]
[1761267961639,2.72,192.85,192.76,2.36685154]
[1761267961938,2.72,192.85,192.71,62.0]
[1761267961939,2.72,192.81,192.72,43.54]
[1761267962145,2.72,192.79,192.72,43.54]
[1761267962333,6.97166358,192.78,192.72,43.54]
[1761267962533,2.72,192.78,192.72,43.54]
[1761267964435,2.72,192.76,192.72,43.54]
[1761267966141,2.72,192.76,192.73,1.51527026]
[1761267968340,2.72,192.74,192.73,1.51527026]
[1761267969346,4.82739561,192.8,192.73,1.51527026]
[1761267969347,2.72,192.8,192.73,1.51527026]
[1761267969640,4.25776014,192.79,192.73,1.51527026]
[1761267969840,2.72,192.83,192.73,1.51527026]
[1761267970042,2.72,192.81,192.71,43.54]
[1761267970240,6.97737411,192.8,192.72,4.6687]
[1761267970436,4.25737411,192.79,192.72,4.6687]
[1761267970744,2.72,192.8,192.78,1.51527026]
[1761267971044,6.97790671,192.79,192.78,1.51527026]
[1761267976647,2.72,192.78,192.75,1.51527026]
[1761267976959,2.72,192.78,192.73,1.51527026]
[1761267976960,2.72,192.76,192.73,1.51527026]
[1761267977146,2.72,192.74,192.73,1.51527026]
[1761267977449,6.97790671,192.74,192.73,1.51527026]
[1761267981357,6.97790671,192.74,192.64,45.05527026]
[1761267981358,2.72,192.73,192.64,45.05527026]
[1761267981557,4.82739561,192.71,192.64,45.05527026]
[1761267981749,4.25790671,192.7,192.64,45.05527026]
[1761267982055,2.72,192.68,192.64,45.05527026]
[1761267982252,4.25790671,192.67,192.64,45.05527026]
[1761267982453,4.25790671,192.66,192.64,1.51527026]
[1761267982653,2.72,192.68,192.63,43.54]
[1761267982856,7.00492522,192.67,192.64,1.51527026]
[1761267983051,4.28492522,192.66,192.64,1.51527026]